bitfinex/quotes_BTCUSD_20250726
["timestamp","ask_amount","ask_price","bid_price","bid_amount"]
[1753530127663,5.9874947,118010.0,118000.0,0.01610001]
[1753530129118,5.9874947,118010.0,118000.0,1e-08]
[1753530129306,1.0916057,118010.0,118000.0,1e-08]
[1753530129707,5.9874947,118010.0,118000.0,1e-08]
[1753530141059,6.0191947,118010.0,118000.0,1e-08]
[1753530141283,6.03664372,118010.0,118000.0,1e-08]
[1753530141986,6.05248518,118010.0,118000.0,1e-08]
[1753530143218,5.73508329,118010.0,118000.0,1e-08]
[1753530143433,6.05248518,118010.0,118000.0,1e-08]
[1753530145467,5.73508329,118010.0,118000.0,1e-08]
[1753530145680,6.05248518,118010.0,118000.0,1e-08]
[1753530146884,6.03664372,118010.0,118000.0,1e-08]
[1753530150186,1.14075472,118010.0,118000.0,1e-08]
[1753530150448,6.03664372,118010.0,118000.0,1e-08]
[1753530151170,1.14075472,118010.0,118000.0,1e-08]
[1753530151376,5.71924183,118010.0,118000.0,1e-08]
[1753530151580,6.03664372,118010.0,118000.0,1e-08]
[1753530152219,1.14075472,118010.0,118000.0,1e-08]
[1753530152419,6.03664372,118010.0,118000.0,1e-08]
[1753530152619,1.14075472,118010.0,118000.0,1e-08]
[1753530152890,6.03664372,118010.0,118000.0,1e-08]
[1753530153105,5.71924183,118010.0,118000.0,1e-08]
[1753530153312,1.14919624,118010.0,118000.0,1e-08]
[1753530153532,6.04508524,118010.0,118000.0,1e-08]
[1753530154103,5.72768335,118010.0,118000.0,1e-08]
[1753530154312,6.04508524,118010.0,118000.0,1e-08]
[1753530159456,1.14919624,118010.0,118000.0,1e-08]
[1753530159670,6.04508524,118010.0,118000.0,1e-08]
[1753530163400,6.05102694,118010.0,118000.0,1e-08]
[1753530167488,6.04842694,118010.0,118000.0,1e-08]
[1753530167695,1.15253794,118010.0,118000.0,1e-08]
[1753530168086,6.04842694,118010.0,118000.0,1e-08]
[1753530170270,5.73102505,118010.0,118000.0,1e-08]
[1753530170705,6.04842694,118010.0,118000.0,1e-08]
[1753530177147,1.15253794,118010.0,118000.0,1e-08]
[1753530177584,6.04842694,118010.0,118000.0,1e-08]
[1753530181660,6.07220784,118010.0,118000.0,1e-08]
[1753530182621,6.0722133,118010.0,118000.0,1e-08]
[1753530183260,6.07221557,118010.0,118000.0,1e-08]
[1753530183394,1.16839909,118010.0,118000.0,1e-08]
[1753530183617,6.06428809,118010.0,118000.0,1e-08]
[1753530188018,5.7468862,118010.0,118000.0,1e-08]
[1753530188225,6.06428809,118010.0,118000.0,1e-08]
[1753530188642,1.16840313,118010.0,118000.0,1e-08]
[1753530188847,6.06429213,118010.0,118000.0,1e-08]
[1753530189375,6.07222189,118010.0,118000.0,1e-08]
[1753530189585,6.06429213,118010.0,118000.0,1e-08]
[1753530190566,5.73103068,118010.0,118000.0,1e-08]
[1753530190784,6.06429394,118010.0,118000.0,1e-08]
[1753530191355,6.07222527,118010.0,118000.0,1e-08]
[1753530194250,1.17633627,118010.0,118000.0,1e-08]
[1753530194427,6.06429394,118010.0,118000.0,1e-08]
[1753530194663,6.07222622,118010.0,118000.0,1e-08]
[1753530197243,6.06635251,118010.0,118000.0,1e-08]
[1753530197428,6.0748316,118010.0,118000.0,1e-08]
[1753530199739,6.07483178,118010.0,118000.0,1e-08]
[1753530200259,0.51796595,118000.0,117990.0,1e-08]
[1753530200470,6.01351826,118000.0,117990.0,1e-08]
[1753530200913,6.01794826,118000.0,117990.0,1e-08]
[1753530201322,6.04341626,118000.0,117990.0,1e-08]
[1753530201498,6.04541626,118000.0,117990.0,1e-08]
[1753530202295,6.04741493,118000.0,117990.0,1e-08]
[1753530203704,6.06301493,118000.0,117990.0,1e-08]
[1753530206197,1.16712593,118000.0,117990.0,1e-08]
[1753530206439,6.06301493,118000.0,117990.0,1e-08]
[1753530207137,1.16712593,118000.0,117990.0,1e-08]
[1753530207345,6.06301493,118000.0,117990.0,1e-08]
[1753530209202,6.0630141,118000.0,117990.0,1e-08]
[1753530209611,6.0298541,118000.0,117990.0,1e-08]
[1753530209819,6.03835391,118000.0,117990.0,1e-08]
[1753530210047,6.04154391,118000.0,117990.0,1e-08]
[1753530210486,6.04369391,118000.0,117990.0,1e-08]
[1753530211115,6.04964251,118000.0,117990.0,1e-08]
[1753530211666,5.73224062,118000.0,117990.0,1e-08]
[1753530211920,6.04964251,118000.0,117990.0,1e-08]
[1753530212121,6.04369391,118000.0,117990.0,1e-08]
[1753530213517,6.03521948,118000.0,117990.0,1e-08]
[1753530214097,6.04369391,118000.0,117990.0,1e-08]
[1753530215304,6.02783116,118000.0,117990.0,1e-08]
[1753530215517,6.03378015,118000.0,117990.0,1e-08]
[1753530215730,6.02783116,118000.0,117990.0,1e-08]
[1753530215944,1.13789133,118000.0,117990.0,1e-08]
[1753530216162,6.03378033,118000.0,117990.0,1e-08]
[1753530216688,6.04964591,118000.0,117990.0,1e-08]
[1753530217442,6.04369674,118000.0,117990.0,1e-08]
[1753530221434,1.14780774,118000.0,117990.0,1e-08]
[1753530221644,6.04369674,118000.0,117990.0,1e-08]
[1753530221827,6.05969674,118000.0,117990.0,1e-08]
[1753530225419,6.06564665,118000.0,117990.0,1e-08]
[1753530225851,6.05969674,118000.0,117990.0,1e-08]
[1753530226197,6.06564669,118000.0,117990.0,1e-08]
[1753530227021,6.06564764,118000.0,117990.0,1e-08]
[1753530227816,6.08084764,118000.0,117990.0,1e-08]
[1753530229383,5.76344575,118000.0,117990.0,1e-08]
[1753530229638,6.08084764,118000.0,117990.0,1e-08]
[1753530230948,6.06564764,118000.0,117990.0,1e-08]
[1753530231402,5.74824575,118000.0,117990.0,1e-08]
[1753530231614,6.06564764,118000.0,117990.0,1e-08]
[1753530231884,1.16975864,118000.0,117990.0,1e-08]
[1753530232152,5.74824575,118000.0,117990.0,1e-08]
[1753530232572,6.06564764,118000.0,117990.0,1e-08]
[1753530235256,6.06564809,118000.0,117990.0,1e-08]
[1753530235850,6.05969931,118000.0,117990.0,1e-08]
[1753530236102,6.06564981,118000.0,117990.0,1e-08]
[1753530238028,6.08214981,118000.0,117990.0,1e-08]
[1753530238513,5.76474792,118000.0,117990.0,1e-08]
[1753530238751,6.08215101,118000.0,117990.0,1e-08]
[1753530243203,6.06565101,118000.0,117990.0,1e-08]
[1753530243619,6.06564969,118000.0,117990.0,1e-08]
[1753530243860,6.39875158,118000.0,117990.0,1e-08]
[1753530244286,6.08134969,118000.0,117990.0,1e-08]
[1753530246925,5.7639478,118000.0,117990.0,1e-08]
[1753530247175,6.08134969,118000.0,117990.0,1e-08]
[1753530247372,1.18546069,118000.0,117990.0,1e-08]
[1753530247608,6.08134969,118000.0,117990.0,1e-08]
[1753530248872,6.08134825,118000.0,117990.0,1e-08]
[1753530249622,1.18545925,118000.0,117990.0,1e-08]
[1753530249838,6.08134825,118000.0,117990.0,1e-08]
[1753530250502,5.76394636,118000.0,117990.0,1e-08]
[1753530250716,6.08134825,118000.0,117990.0,1e-08]
[1753530253435,1.18545925,118000.0,117990.0,1e-08]
[1753530253623,6.08134825,118000.0,117990.0,1e-08]
[1753530254746,1.16975925,118000.0,117990.0,1e-08]
[1753530254931,6.06564825,118000.0,117990.0,1e-08]
[1753530255155,5.74824636,118000.0,117990.0,1e-08]
[1753530255315,6.06564825,118000.0,117990.0,1e-08]
[1753530255714,1.16975925,118000.0,117990.0,1e-08]
[1753530255919,6.06564825,118000.0,117990.0,1e-08]
[1753530257812,1.16975925,118000.0,117990.0,1e-08]
[1753530257983,6.08084825,118000.0,117990.0,1e-08]
[1753530258206,6.13084825,118000.0,117990.0,1e-08]
[1753530258603,6.13878072,118000.0,117990.0,1e-08]
[1753530258802,6.08878072,118000.0,117990.0,1e-08]
[1753530258974,6.13878072,118000.0,117990.0,1e-08]
[1753530259168,6.08878072,118000.0,117990.0,1e-08]
[1753530259624,6.13878072,118000.0,117990.0,1e-08]
[1753530259836,6.08878072,118000.0,117990.0,1e-08]
[1753530260049,6.13878072,118000.0,117990.0,1e-08]
[1753530260188,6.45618261,118000.0,117990.0,1e-08]
[1753530261246,6.4561812,118000.0,117990.0,1e-08]
[1753530262956,1.5602922,118000.0,117990.0,1e-08]
[1753530263187,6.4561812,118000.0,117990.0,1e-08]
[1753530264044,6.39824873,118000.0,117990.0,1e-08]
[1753530264253,6.4561806,118000.0,117990.0,1e-08]
[1753530264454,1.5602916,118000.0,117990.0,1e-08]
[1753530264790,6.4561806,118000.0,117990.0,1e-08]
[1753530265152,6.45618055,118000.0,117990.0,1e-08]
[1753530265747,6.45617768,118000.0,117990.0,1e-08]
[1753530266358,6.40617768,118000.0,117990.0,1e-08]
[1753530266560,6.45617768,118000.0,117990.0,1e-08]
[1753530266968,6.40617768,118000.0,117990.0,1e-08]
[1753530270039,6.40617629,118000.0,117990.0,1e-08]
[1753530271141,5.77137251,118000.0,117990.0,1e-08]
[1753530271359,6.40617629,118000.0,117990.0,1e-08]
[1753530272593,6.0887744,118000.0,117990.0,1e-08]
[1753530272818,6.40617629,118000.0,117990.0,1e-08]
[1753530273053,6.40617587,118000.0,117990.0,1e-08]
[1753530273274,6.08877398,118000.0,117990.0,1e-08]
[1753530273507,6.40617587,118000.0,117990.0,1e-08]
[1753530274269,6.08877398,118000.0,117990.0,1e-08]
[1753530274752,6.40617587,118000.0,117990.0,1e-08]
[1753530275000,5.77137209,118000.0,117990.0,1e-08]
[1753530275202,6.40617587,118000.0,117990.0,1e-08]
[1753530277289,1.51028687,118000.0,117990.0,1e-08]
[1753530277652,6.40617587,118000.0,117990.0,1e-08]
[1753530283342,6.40617484,118000.0,117990.0,1e-08]
[1753530284803,6.40617478,118000.0,117990.0,1e-08]
[1753530284982,6.55617478,118000.0,117990.0,1e-08]
[1753530285800,6.55617497,118000.0,117990.0,1e-08]
[1753530287562,6.54824396,118000.0,117990.0,1e-08]
[1753530287821,6.55617561,118000.0,117990.0,1e-08]
[1753530289664,1.66028661,118000.0,117990.0,1e-08]
[1753530289879,6.55617561,118000.0,117990.0,1e-08]
[1753530293463,6.57445309,118000.0,117990.0,1e-08]
[1753530294587,6.57245309,118000.0,117990.0,1e-08]
[1753530294801,6.57545309,118000.0,117990.0,1e-08]
[1753530295840,1.67756409,118000.0,117990.0,1e-08]
[1753530295957,6.57345309,118000.0,117990.0,1e-08]
[1753530296161,6.57545309,118000.0,117990.0,1e-08]
[1753530296376,6.56157333,118000.0,117990.0,1e-08]
[1753530296602,6.55716819,118000.0,117990.0,1e-08]
[1753530297050,6.55716837,118000.0,117990.0,1e-08]
[1753530299215,6.05593648,118000.0,117990.0,1e-08]
[1753530299437,6.05274668,118000.0,117990.0,1e-08]
[1753530299906,6.05571668,118000.0,117990.0,1e-08]
[1753530300370,6.05371668,118000.0,117990.0,1e-08]
[1753530300795,5.92235668,118000.0,117990.0,1e-08]
[1753530301021,5.99685088,118000.0,117990.0,0.04132001]
[1753530301455,5.86549088,118000.0,117990.0,0.04132001]
[1753530301666,5.67944899,118000.0,117990.0,0.04132001]
[1753530301876,5.99685088,118000.0,117990.0,0.04132001]
[1753530302090,5.98099214,118000.0,117990.0,0.04132001]
[1753530302334,5.19223025,118000.0,117990.0,0.04132001]
[1753530302546,5.63069225,118000.0,117990.0,0.04132001]
[1753530302765,5.81573414,118000.0,117990.0,0.04132001]
[1753530302990,5.54517495,118000.0,117990.0,0.39463409]
[1753530303209,5.41385495,118000.0,117990.0,0.3587219]
[1753530303415,5.41385495,118000.0,117990.0,0.04132001]
[1753530304313,5.41385495,118000.0,117990.0,0.04332001]
[1753530304314,5.41485495,118000.0,117990.0,0.04332001]
[1753530305012,5.41385495,118000.0,117990.0,0.04332001]
[1753530305430,5.41385495,118000.0,117990.0,0.17464001]
[1753530305866,0.51796595,118000.0,117990.0,0.4920419]
[1753530306086,0.51796595,118000.0,117990.0,0.17464001]
[1753530306305,0.52644031,118000.0,117990.0,0.52329093]
[1753530308322,0.01694879,118000.0,117990.0,1.01867386]
[1753530308536,0.18644031,118000.0,117990.0,1.02714886]
[1753530308773,0.35694864,118000.0,117990.0,1.03562365]
[1753530308992,0.36542271,118000.0,117990.0,1.02714886]
[1753530309228,0.37389721,118000.0,117990.0,1.03562372]
[1753530309444,0.37389721,118000.0,117990.0,1.02714886]
[1753530309878,0.37389721,118000.0,117990.0,1.03562379]
[1753530310096,0.38237178,118000.0,117990.0,1.03562379]
[1753530310313,0.35694828,118000.0,117990.0,1.04409858]
[1753530310525,0.36542271,118000.0,117990.0,1.04409858]
[1753530310701,0.35694828,118000.0,117990.0,1.12857588]
[1753530311112,0.36542256,118000.0,117990.0,0.4937721]
[1753530311360,0.37389706,118000.0,117990.0,1.12010109]
[1753530311562,0.38237163,118000.0,117990.0,1.12010109]
[1753530311763,0.35694849,118000.0,117990.0,1.12010095]
[1753530311917,0.36542292,118000.0,117990.0,1.12010095]
[1753530312494,0.37389742,118000.0,117990.0,1.12010095]
[1753530313551,0.35694849,118000.0,117990.0,1.12010095]
[1753530313765,0.01694849,118000.0,117990.0,1.12010095]
[1753530313981,0.03389742,118000.0,117990.0,1.12010102]
[1753530314205,0.02542292,118000.0,117990.0,1.12857581]
[1753530314414,0.03389742,118000.0,117990.0,1.11162616]
[1753530314625,0.19491473,118000.0,117990.0,0.46834745]
[1753530314838,0.18644045,118000.0,117990.0,1.11162638]
[1753530315065,0.17796602,118000.0,117990.0,1.12010138]
[1753530315273,0.17796602,118000.0,117990.0,1.12857631]
[1753530315831,0.17796602,118000.0,117990.0,0.49377253]
[1753530316029,0.17796602,118000.0,117990.0,1.12857631]
[1753530316663,0.17796602,118000.0,117990.0,0.4768226]
[1753530316871,0.57796602,118000.0,117990.0,1.12010145]
[1753530317288,0.57796602,118000.0,117990.0,0.79422449]
[1753530317501,0.57796602,118000.0,117990.0,0.80269956]
[1753530317912,0.57796602,118000.0,117990.0,0.81117456]
[1753530318131,0.57796602,118000.0,117990.0,1.12857645]
[1753530319658,0.57796602,118000.0,117990.0,1.13705138]
[1753530319880,0.57796602,118000.0,117990.0,0.5022476]
[1753530320128,0.57796602,118000.0,117990.0,1.13705138]
[1753530320357,0.41694878,118000.0,117990.0,1.13705102]
[1753530320591,0.42542335,118000.0,117990.0,1.13705102]
[1753530321055,0.59491487,118000.0,117990.0,1.12857616]
[1753530321831,0.42542335,118000.0,117990.0,1.12857616]
[1753530322110,0.59491487,118000.0,117990.0,1.12857616]
[1753530322380,0.59491487,118000.0,117990.0,1.12010123]
[1753530322892,0.42542335,118000.0,117990.0,1.12857609]
[1753530323363,0.59491487,118000.0,117990.0,1.12010123]
[1753530323594,0.59491487,118000.0,117990.0,1.12857616]
[1753530323952,0.59491487,118000.0,117990.0,0.48529745]
[1753530324184,0.58644059,118000.0,117990.0,0.80269934]
[1753530324502,0.58644059,118000.0,117990.0,0.79422434]
[1753530324728,0.58644059,118000.0,117990.0,0.78590434]
[1753530324986,0.61003059,118000.0,117990.0,0.78590434]
[1753530325258,0.58644059,118000.0,117990.0,0.78590434]
[1753530325892,0.61003059,118000.0,117990.0,0.78590434]
[1753530327014,0.60155609,118000.0,117990.0,0.46002738]
[1753530327241,0.60155609,118000.0,117990.0,0.77742927]
[1753530328032,0.60155609,118000.0,117990.0,0.78590434]
[1753530328635,0.60155609,118000.0,117990.0,0.79437934]
[1753530328843,0.60155609,118000.0,117990.0,0.78590434]
[1753530329819,0.60458609,118000.0,117990.0,0.78590434]
[1753530330631,0.60458609,118000.0,117990.0,0.77742927]
[1753530332767,0.60458609,118000.0,117990.0,0.78590434]
[1753530334837,0.60458609,118000.0,117990.0,0.77742927]
[1753530335849,0.60458609,118000.0,117990.0,0.78590434]
[1753530338806,0.60458609,118000.0,117990.0,0.7882029]
[1753530340742,0.20458609,118000.0,117990.0,0.7882029]
[1753530341592,0.60458609,118000.0,117990.0,0.7882029]
[1753530344480,0.60672609,118000.0,117990.0,0.7882029]
[1753530344686,0.60672609,118000.0,117990.0,0.77972783]
[1753530345399,0.60672609,118000.0,117990.0,0.7882029]
[1753530346079,0.60672609,118000.0,117990.0,0.7966779]
[1753530352290,0.60672609,118000.0,117990.0,0.80515283]
[1753530353133,0.40847414,118000.0,117990.0,1.13102951]
[1753530353368,0.43389677,118000.0,117990.0,1.13102951]
[1753530353751,0.45858677,118000.0,117990.0,1.13102951]
[1753530353886,0.45858677,118000.0,117990.0,1.13002951]
[1753530354091,0.46161677,118000.0,117990.0,1.13002951]
[1753530354709,0.46161677,118000.0,117990.0,0.81562762]
[1753530354941,0.46161677,118000.0,117990.0,1.13302951]
[1753530358167,0.47009127,118000.0,117990.0,1.13302951]
[1753530358381,0.47009127,118000.0,117990.0,0.81562762]
[1753530358597,0.47207127,118000.0,117990.0,0.81562762]
[1753530359058,0.46359677,118000.0,117990.0,0.81562762]
[1753530360099,0.46359677,118000.0,117990.0,0.79902762]
[1753530360553,0.47207127,118000.0,117990.0,0.79902762]
[1753530360760,0.47207192,118000.0,117990.0,0.47315094]
[1753530360978,0.47207192,118000.0,117990.0,0.77415283]
[1753530361852,0.46359735,118000.0,117990.0,0.78262762]
[1753530362613,0.47207192,118000.0,117990.0,0.77415283]
[1753530362810,0.46359778,118000.0,117990.0,0.77415283]
[1753530364701,0.62461502,118000.0,117990.0,0.44827601]
[1753530364909,0.62461502,118000.0,117990.0,0.7656779]
[1753530369107,0.62461502,118000.0,117990.0,0.7572029]
[1753530369311,0.62461502,118000.0,117990.0,0.77415283]
[1753530370529,0.62461502,118000.0,117990.0,0.45675094]
[1753530370732,0.62461502,118000.0,117990.0,0.77415283]
[1753530371814,0.62461502,118000.0,117990.0,0.7656779]
[1753530372759,0.62461502,118000.0,117990.0,0.77415283]
[1753530374052,0.4551235,118000.0,117990.0,0.77415283]
[1753530375552,0.4551235,118000.0,117990.0,0.7656779]
[1753530377888,0.62461502,118000.0,117990.0,0.7572029]
[1753530378090,0.62461502,118000.0,117990.0,0.43980101]
[1753530378443,0.62461502,118000.0,117990.0,0.7656779]
[1753530378664,0.62461502,118000.0,117990.0,0.7572029]
[1753530379384,0.62461502,118000.0,117990.0,0.76567783]
[1753530380561,0.46359692,118000.0,117990.0,0.77415269]
[1753530380767,0.45512242,118000.0,117990.0,0.78262748]
[1753530380980,0.46359685,118000.0,117990.0,0.78262748]
[1753530382200,0.46359685,118000.0,117990.0,1.10002937]
[1753530383877,0.47207135,118000.0,117990.0,1.09155458]
[1753530384545,0.46359735,118000.0,117990.0,1.08307972]
[1753530384785,0.47207192,118000.0,117990.0,1.08307972]
[1753530385608,0.46359735,118000.0,117990.0,1.08307972]
[1753530385806,0.46359735,118000.0,117990.0,1.09155458]
[1753530386242,0.46359735,118000.0,117990.0,1.10002937]
[1753530388197,0.46359735,118000.0,117990.0,1.09155458]
[1753530388409,0.45512285,118000.0,117990.0,1.10002937]
[1753530390679,0.46359742,118000.0,117990.0,0.76567783]
[1753530391089,0.46359742,118000.0,117990.0,0.77415269]
[1753530391304,0.46359742,118000.0,117990.0,1.09155458]
[1753530391848,0.45512285,118000.0,117990.0,1.10002937]
[1753530393045,0.46359735,118000.0,117990.0,1.10002937]
[1753530393411,0.46359735,118000.0,117990.0,1.09155458]
[1753530393760,0.45512285,118000.0,117990.0,1.10002937]
[1753530393950,0.46359735,118000.0,117990.0,1.10002937]
[1753530394327,0.46359735,118000.0,117990.0,0.78210748]
[1753530394752,0.46359735,118000.0,117990.0,0.77363283]
[1753530395358,0.46359735,118000.0,117990.0,0.64283283]
[1753530395607,0.46359735,118000.0,117990.0,0.77359283]
[1753530395824,0.46359735,118000.0,117990.0,0.78206769]
[1753530396816,0.47207192,118000.0,117990.0,0.78206769]
[1753530396982,0.48847192,118000.0,117990.0,0.78206769]
[1753530397982,0.48847192,118000.0,117990.0,1.09946958]
[1753530398744,0.47999735,118000.0,117990.0,1.09946922]
[1753530399013,0.47999735,118000.0,117990.0,0.78206733]
[1753530399586,0.47999735,118000.0,117990.0,1.09946922]
[1753530399811,0.47152285,118000.0,117990.0,1.09946922]
[1753530400018,0.45512285,118000.0,117990.0,1.09946922]
[1753530400365,0.45512285,118000.0,117990.0,0.78206733]
[1753530401255,0.44664842,118000.0,117990.0,0.78206733]
[1753530401451,0.45512278,118000.0,117990.0,0.78206733]
[1753530401658,0.44664842,118000.0,117990.0,0.78206733]
[1753530401875,0.44664842,118000.0,117990.0,1.09946922]
[1753530402486,0.45512278,118000.0,117990.0,1.09946922]
[1753530402699,0.44664806,118000.0,117990.0,0.33390544]
[1753530402849,0.45512227,118000.0,117990.0,1.09942922]
[1753530403048,0.46359655,118000.0,117990.0,1.09942922]
[1753530404349,0.46359655,118000.0,117990.0,0.46462544]
[1753530404542,0.47207091,118000.0,117990.0,0.78202733]
[1753530405141,0.47207091,118000.0,117990.0,1.09942922]
[1753530406490,0.46359655,118000.0,117990.0,1.09942922]
[1753530407628,0.47207091,118000.0,117990.0,1.09942922]
[1753530409856,0.48747091,118000.0,117990.0,1.09942922]
[1753530410275,0.48747091,118000.0,117990.0,0.46462544]
[1753530410483,0.48747091,118000.0,117990.0,1.09942922]
[1753530411784,0.47899655,118000.0,117990.0,1.09942922]
[1753530413684,0.48747098,118000.0,117990.0,1.09942922]
[1753530413889,0.48747091,118000.0,117990.0,1.09942922]
[1753530416801,0.48747142,118000.0,117990.0,1.09942922]
[1753530417026,0.57747142,118000.0,117990.0,0.46462544]
[1753530417203,0.57747142,118000.0,117990.0,1.09942922]
[1753530420133,0.57747178,118000.0,117990.0,0.78202733]
[1753530421839,0.57747178,118000.0,117990.0,0.76507768]
[1753530422029,0.75498909,118000.0,117990.0,0.43920086]
[1753530422317,0.75498909,118000.0,117990.0,0.75660275]
[1753530422560,0.75498909,118000.0,117990.0,0.43920086]
[1753530422764,0.75498909,118000.0,117990.0,0.7481279]
[1753530422765,0.74651481,118000.0,117990.0,0.7481279]
[1753530422964,0.74651481,118000.0,117990.0,0.75660305]
[1753530423093,0.74651481,118000.0,117990.0,0.76507812]
[1753530423718,0.74651481,118000.0,117990.0,0.77355312]
[1753530429446,0.74651481,118000.0,117990.0,0.45615123]
[1753530429579,0.74651481,118000.0,117990.0,0.77355312]
[1753530430550,0.74651481,118000.0,117990.0,0.76507812]
[1753530436406,0.74651481,118000.0,117990.0,0.63435812]
[1753530436559,0.74651481,118000.0,117990.0,0.76491812]
[1753530437723,0.74651481,118000.0,117990.0,0.77339298]
[1753530437898,0.74651481,118000.0,117990.0,0.76491812]
[1753530444922,0.74651481,118000.0,117990.0,0.77339312]
[1753530445441,0.74651481,118000.0,117990.0,0.64283312]
[1753530445642,0.74651481,118000.0,117990.0,0.77331312]
[1753530450637,0.72956602,118000.0,117990.0,0.22225587]
[1753530450892,6.35994377,118000.0,117990.0,0.00404857]
[1753530451110,6.08886656,118000.0,117990.0,0.00404857]
[1753530451773,6.07610308,118000.0,117990.0,0.13636857]
[1753530451977,5.75870119,118000.0,117990.0,0.13636857]
[1753530452192,0.17798104,117990.0,117980.0,0.0004]
[1753530452497,5.74342382,117990.0,117980.0,0.0004]
[1753530452687,5.76999382,117990.0,117980.0,0.0004]
[1753530452926,5.45259193,117990.0,117980.0,0.13272]
[1753530453121,5.45259193,117990.0,117980.0,0.0004]
[1753530453342,5.45259193,117990.0,117980.0,0.13272]
[1753530453559,5.45259193,117990.0,117980.0,0.13472]
[1753530454132,5.45259193,117990.0,117980.0,0.0024]
[1753530454351,5.45259193,117990.0,117980.0,0.13472]
[1753530454966,5.45259193,117990.0,117980.0,0.13672]
[1753530455791,5.45259193,117990.0,117980.0,0.13172]
[1753530456218,0.23930104,117990.0,117980.0,0.13172]
[1753530456420,5.13519004,117990.0,117980.0,0.13172]
[1753530456617,5.45259193,117990.0,117980.0,0.13172]
[1753530456831,5.13519004,117990.0,117980.0,0.13172]
[1753530456980,5.45259193,117990.0,117980.0,0.13172]
[1753530458815,5.13519004,117990.0,117980.0,0.13172]
[1753530459018,5.23846482,117990.0,117980.0,0.13172]
[1753530459216,5.41859586,117990.0,117980.0,0.13172]
[1753530462048,5.10119397,117990.0,117980.0,0.13172]
[1753530462265,5.44999586,117990.0,117980.0,0.13172]
[1753530466733,0.55410686,117990.0,117980.0,0.13172]
[1753530467157,5.44999586,117990.0,117980.0,0.13172]
[1753530467726,5.13259397,117990.0,117980.0,0.13172]
[1753530467937,5.44999586,117990.0,117980.0,0.13172]
[1753530477062,5.47497018,117990.0,117980.0,0.13172]
[1753530478680,5.16596156,117990.0,117980.0,0.13172]
[1753530479315,5.48336345,117990.0,117980.0,0.13172]
[1753530480238,5.48336345,117990.0,117980.0,0.002]
[1753530480442,5.80076534,117990.0,117980.0,0.13364]
[1753530482973,5.80076534,117990.0,117980.0,0.002]
[1753530483189,5.80076534,117990.0,117980.0,0.13352]
[1753530483813,5.80076534,117990.0,117980.0,0.13152]
[1753530484317,5.80076534,117990.0,117980.0,0.13252]
[1753530485043,5.93224534,117990.0,117980.0,0.13248]
[1753530485794,5.29744156,117990.0,117980.0,0.13248]
[1753530485996,5.93224534,117990.0,117980.0,0.13248]
[1753530486758,5.93224534,117990.0,117980.0,0.001]
[1753530486962,5.93224534,117990.0,117980.0,0.13244]
[1753530487164,5.93224534,117990.0,117980.0,0.001]
[1753530487606,5.93224534,117990.0,117980.0,0.13244]
[1753530488306,1.03635634,117990.0,117980.0,0.13244]
[1753530488515,5.93224534,117990.0,117980.0,0.13244]
[1753530488726,5.95770934,117990.0,117980.0,0.13244]
[1753530489370,1.06182034,117990.0,117980.0,0.13244]
[1753530489582,5.95770934,117990.0,117980.0,0.13244]
[1753530489749,1.06182034,117990.0,117980.0,0.13244]
[1753530489945,5.95770934,117990.0,117980.0,0.13244]
[1753530490371,5.95770934,117990.0,117980.0,0.1324]
[1753530496413,5.95770934,117990.0,117980.0,0.001]
[1753530500746,1.06182034,117990.0,117980.0,0.001]
[1753530500945,5.95770934,117990.0,117980.0,0.001]
[1753530503702,1.06182034,117990.0,117980.0,0.001]
[1753530503940,5.95770934,117990.0,117980.0,0.001]
[1753530506408,5.32290556,117990.0,117980.0,0.001]
[1753530506604,5.95770934,117990.0,117980.0,0.001]
[1753530508148,5.19142556,117990.0,117980.0,0.001]
[1753530508361,5.82622934,117990.0,117980.0,0.001]
[1753530508561,5.95738934,117990.0,117980.0,0.001]
[1753530510338,5.63998745,117990.0,117980.0,0.001]
[1753530511320,5.72446475,117990.0,117980.0,0.001]
[1753530511535,6.38186664,117990.0,117980.0,0.001]
[1753530512914,1.48597764,117990.0,117980.0,0.001]
[1753530513103,6.38186664,117990.0,117980.0,0.001]
[1753530516176,5.74706286,117990.0,117980.0,0.001]
[1753530516388,6.38186664,117990.0,117980.0,0.001]
[1753530519918,6.39931566,117990.0,117980.0,0.001]
[1753530520149,6.40374566,117990.0,117980.0,0.001]
[1753530520674,6.37857173,117990.0,117980.0,0.001]
[1753530522724,6.40492173,117990.0,117980.0,0.001]
[1753530523193,1.50903273,117990.0,117980.0,0.001]
[1753530523316,6.40492173,117990.0,117980.0,0.001]
[1753530524007,5.77011795,117990.0,117980.0,0.001]
[1753530524217,5.41388511,117980.0,117970.0,20.0004]
[1753530524459,6.0075243,117980.0,117970.0,20.0004]
[1753530524878,6.0329933,117980.0,117970.0,20.0004]
[1753530525542,5.71559141,117980.0,117970.0,20.0014]
[1753530525782,6.0329933,117980.0,117970.0,20.0014]
[1753530526231,6.1229933,117980.0,117970.0,20.0014]
[1753530528646,6.1200233,117980.0,117970.0,20.0014]
[1753530530242,5.80262141,117980.0,117970.0,20.0014]
[1753530530468,6.1200233,117980.0,117970.0,20.0014]
[1753530530911,5.9312333,117980.0,117970.0,20.02889]
[1753530531161,5.66155411,117980.0,117970.0,20.06019]
[1753530531420,5.978956,117980.0,117970.0,20.06019]
[1753530533831,5.66155411,117980.0,117970.0,20.19239]
[1753530534466,5.978956,117980.0,117970.0,20.19239]
[1753530534961,5.66155411,117980.0,117970.0,20.19239]
[1753530535606,5.978956,117980.0,117970.0,20.19239]
[1753530536127,5.846756,117980.0,117970.0,20.19239]
[1753530537201,5.52935411,117980.0,117970.0,20.19239]
[1753530537408,5.846756,117980.0,117970.0,20.19239]
[1753530537619,0.950867,117980.0,117970.0,20.19239]
[1753530537838,5.846756,117980.0,117970.0,20.19239]
[1753530540090,5.52935411,117980.0,117970.0,20.19239]
[1753530540304,5.50388511,117980.0,117970.0,20.19239]
[1753530540747,0.925398,117980.0,117970.0,20.19239]
[1753530543184,0.45542766,117980.0,117970.0,20.78923341]
[1753530543476,0.61647212,117980.0,117970.0,20.2768673]
[1753530543780,0.61647212,117980.0,117970.0,20.78075704]
[1753530544148,0.61647212,117980.0,117970.0,20.78923355]
[1753530544789,0.61647212,117980.0,117970.0,20.79770999]
[1753530547078,0.61647212,117980.0,117970.0,20.78923355]
[1753530548977,0.61647212,117980.0,117970.0,20.78075704]
[1753530549999,0.61647212,117980.0,117970.0,20.78923355]
[1753530551219,0.61647212,117980.0,117970.0,20.79022999]
[1753530553500,0.44695187,117980.0,117970.0,20.79870636]
[1753530554806,0.44695187,117980.0,117970.0,20.79022999]
[1753530555730,0.44695151,117980.0,117970.0,20.79870593]
[1753530555942,0.45542752,117980.0,117970.0,20.79022971]